Cogmind - Beta 13 @@@ ROGUE MODE // 2024.04.21 @ 04:10:57 Player: Peregrine Result: Destroyed by BV-0GN(R) with Subdweller Machine Gun Performance ------------- Evolutions (0) 0 Regions Visited (2) 400 Robots Destroyed (14) 70 Value Destroyed (441) 441 Prototype IDs (10) 200 Alien Tech Used (0) 0 Bonus (0) 0 TOTAL SCORE: 1111 Bonus ------- None Cogmind --------- Core Integrity 0/250 Matter 67/300 Energy 200/200 System Corruption 0% Temperature Cool (0) Movement Walking (130) Location -10/Subcaves Parts ------- > --- POWER (1) -------- Subdweller Power Source > --- PROPULSION (2) --- Cargo Legs > --- UTILITY (2+2) ---- Disposable Heat Sink (+) Medium Storage Unit Scrap Shield (+) > --- WEAPON (2) ------- Barrage Gun > --- INVENTORY (10) --- Subdweller Power Source Light Treads Subdweller Optics Makeshift Light Armor Plating Makeshift Hacking Suite Riot Gun Small Laser Light Assault Rifle Grenade Launcher Scrap Shield Fragment (33) Peak State ------------ > --- POWER ------------ Subdweller Power Source > --- PROPULSION ------- Cargo Legs > --- UTILITY ---------- Disposable Heat Sink Medium Storage Unit Scrap Shield > --- WEAPON ----------- Riot Gun Battle Cannon > --- INVENTORY -------- Subdweller Power Source Light Treads Subdweller Optics Makeshift Light Armor Plating Makeshift Hacking Suite Small Laser Light Assault Rifle Barrage Gun Grenade Launcher Scrap Shield Fragment [Rating: 32] Favorites ----------- Power Subdweller Power Source Engine Subdweller Power Source Power Core Light Nuclear Core Propulsion Compact Wheel Treads Light Treads Leg Cargo Legs Wheel Compact Wheel Utility Medium Storage Unit Device Disposable Heat Sink Storage Medium Storage Unit Protection Scrap Shield Weapon Battle Cannon Energy Gun Riot Gun Ballistic Gun Assault Rifle Ballistic Cannon Battle Cannon Launcher Grenade Launcher Special Weapon Flamer Build | -11 -10 -10 ------- Run | Yrd Mat Sub Slots Evolved . | . . . Power . | . . . Propulsion . | . . . Utility . | . . . Weapon . | . . . Parts Attached 26 | 2 3 21 Power 4 | . 2 2 Engine 3 | . 1 2 Core 1 | . 1 . Reactor . | . . . Propulsion 7 | 2 . 5 Treads 2 | . . 2 Leg 1 | . . 1 Wheel 4 | 2 . 2 Hover . | . . . Flight . | . . . Utility 5 | . 1 4 Device 3 | . . 3 Storage 1 | . 1 . Processor . | . . . Hackware . | . . . Protection 1 | . . 1 Artifact . | . . . Weapon 10 | . . 10 Energy Gun 2 | . . 2 Energy Cannon . | . . . Ballistic Gun 4 | . . 4 Ballistic Cannon 1 | . . 1 Launcher 2 | . . 2 Special Weapon 1 | . . 1 Impact Weapon . | . . . Slashing Weapon . | . . . Piercing Weapon . | . . . Special Melee Weapon . | . . . Unidentified Prototypes . | . . . Parts Lost 3 | . . 3 Power . | . . . Propulsion 1 | . . 1 Utility . | . . . Weapon 2 | . . 2 Highest Loss Streak 2 | . . 2 To Critical Strikes . | . . . Average Slot Usage (%) 83 | . 85 82 Engine 8 | . 3 11 Core 3 | . 10 . Leg 5 | . . 7 Wheel 13 | . 28 8 Device 8 | . . 11 Storage 12 | . 14 12 Protection 4 | . . 6 Energy Gun 1 | . . 2 Ballistic Gun 15 | . 28 9 Ballistic Cannon 5 | . . 7 Launcher 2 | . . 4 Naked Turns . | . . . Heaviest Build 40 | 13 18 40 Greatest Support 55 | 32 32 55 Greatest Overweight (x) 1 | . . 1 Average Overweight (x) . | . . . Largest Inventory Capacity 10 | 8 10 10 Average Capacity 9 | 8 9 10 Most Carried 10 | 6 8 10 Average Carried 8 | 5 6 9 Final Capacity 10 | 8 10 10 Final Carried 10 | 4 7 10 Class Distribution -------------------- 97% | Mutant Dominant Class ---------------- Mutant | -10/Materials Mutant | -10/Subcaves Resources | -11 -10 -10 ----------- Run | Yrd Mat Sub Matter Collected 821 | 200 108 513 Remotely . | . . . Salvage Created 423 | . 120 303 Parts 25 | . 5 20 Haulers Intercepted . | . . . Recyclers Shooed . | . . . Parts Field Recycled . | . . . Retrieved Matter . | . . . Parts Self-Destructed 1 | . . 1 Prevented . | . . . Kills | -11 -10 -10 ------- Run | Yrd Mat Sub Combat Hostiles Destroyed 14 | . 4 10 Guns 8 | . 4 4 Cannons 6 | . . 6 Classes Destroyed 3 | . 2 1 Swarmer 4 | . 2 2 Grunt 2 | . 2 . Subdweller 8 | . . 8 Best Kill Streak 2 | . 2 2 Combat Bots Only 2 | . 2 2 Max Kills in Single Turn 1 | . 1 1 Gunslinging . | . . . Exploded . | . . . Melee . | . . . Uniques/NPCs Destroyed . | . . . Combat | -11 -10 -10 -------- Run | Yrd Mat Sub Hostile Shots Fired 72 | . 20 52 Missed 14 | . 4 10 Damage Taken 1205 | . 194 1011 Core 252 | . 35 217 Absorbed by Shields . | . . . Core Remaining (%) 100 | 100 . . Volleys Fired 104 | . 23 81 Largest 2 | . 2 2 Hottest 89 | . 40 89 Shots Fired 160 | . 46 114 Gun 87 | . 46 41 Cannon 66 | . . 66 Launcher 7 | . . 7 Special . | . . . Kinetic 146 | . 46 100 Thermal . | . . . Explosive 7 | . . 7 Electromagnetic 7 | . . 7 Robot Hit Streak 15 | . 5 15 Robot Miss Streak 6 | . 6 2 Penetration Max . | . . . Secondary Targets . | . . . Shots Hit Robots 73 | . 22 51 Core Hits 23 | . 7 16 Critical Kills . | . . . Critical Parts Destroyed . | . . . Critical Strikes 2 | . . 2 Blast 2 | . . 2 Melee Attacks . | . . . Impact . | . . . Slashing . | . . . Piercing . | . . . Sneak Attacks . | . . . Combat Hostiles . | . . . Follow-up Attacks . | . . . Damage Inflicted 1105 | . 233 872 Guns 711 | . 233 478 Cannons 394 | . . 394 Explosions . | . . . Melee . | . . . Ramming . | . . . Kinetic 1070 | . 233 837 Thermal . | . . . Explosive . | . . . Electromagnetic 35 | . . 35 Impact . | . . . Slashing . | . . . Piercing . | . . . Highest Corruption . | . . . Average Corruption . | . . . Corruption Purged . | . . . Corruption Blocked . | . . . Overload Shots . | . . . Overflow Damage 12 | . . 12 Projectiles 12 | . . 12 Explosions . | . . . Melee . | . . . Knockbacks 5 | . . 5 Impact . | . . . Kinetic 5 | . . 5 Secondary . | . . . Self-Inflicted Damage . | . . . Shots . | . . . Rammed . | . . . Targets Rammed . | . . . Kicked . | . . . Crushed . | . . . Highest Temperature 9 | . 9 2 Average Temperature 4 | . 5 2 Received Heat Transfer 204 | . 90 114 Siege Activations . | . . . Robots Corrupted . | . . . Combat Hostiles . | . . . Parts Fried . | . . . Impact Corruptions . | . . . Robots Melted . | . . . Combat Hostiles . | . . . Parts Melted . | . . . Heat Transferred . | . . . Parts Sabotaged . | . . . Parts Stolen . | . . . Parts Stripped . | . . . Power Chain Reactions . | . . . Alert | -11 -10 -10 ------- Run | Yrd Mat Sub Peak Influence 147 | . 147 . Initial . | . . . Average 75 | . 75 . Maximum Alert Level . | . . . Low Security (%) 100 | 100 100 . Level 1 . | . . . Level 2 . | . . . Level 3 . | . . . Level 4 . | . . . Level 5 . | . . . High Security . | . . . Max Security . | . . . Squads Dispatched . | . . . Investigation . | . . . Extermination . | . . . Reinforcement . | . . . Assault . | . . . Garrison . | . . . Intercept . | . . . Searches Triggered . | . . . Construction Impeded . | . . . Haulers Reinforced . | . . . Active Scanning Responses . | . . . Cargo Convoy Interrupts . | . . . Stealth | -11 -10 -10 --------- Run | Yrd Mat Sub Distress Signals . | . . . Communications Jammed . | . . . Distress Signals . | . . . Times Spotted 26 | . 8 18 Peak Tracking Total 6 | . 3 6 Tactical Retreats 4 | . 1 3 Traps | -11 -10 -10 ------- Run | Yrd Mat Sub Traps Triggered 5 | . . 5 Indirectly . | . . . Trap Hack Attempts . | . . . Triggered . | . . . Disarmed . | . . . Reprogrammed . | . . . Reused . | . . . Traps Extracted . | . . . Installed . | . . . Triggered . | . . . Machines | -11 -10 -10 ---------- Run | Yrd Mat Sub Machines Disabled 2 | . . 2 Max in Single Turn 1 | . . 1 Machines Repaired . | . . . Machines Dismantled . | . . . Machines Sabotaged . | . . . Overloaded Fab Kills . | . . . Hacking | -11 -10 -10 --------- Run | Yrd Mat Sub Machines Accessed 4 | . 3 1 Terminals 3 | . 3 . Fabricators . | . . . Repair Stations . | . . . Recycling Units . | . . . Scanalyzers . | . . . Garrison Access . | . . . Total Hacks 17 | . 8 9 Successful 15 | . 6 9 Failed 2 | . 2 . Catastrophic . | . . . Database Lockouts . | . . . Manual 8 | . 8 . Terminals 8 | . 8 . Fabricators . | . . . Repair Stations . | . . . Recycling Units . | . . . Scanalyzers . | . . . Garrison Access . | . . . Terminal Hacks 11 | . 2 9 Record 8 | . . 8 Zone Layout 2 | . 2 . Derelict Proto ID Bank 1 | . . 1 Fabricator Hacks . | . . . Repair Station Hacks . | . . . Recycling Unit Hacks . | . . . Scanalyzer . | . . . Garrison Access Hacks . | . . . Unauthorized Hacks 4 | . 4 . Terminals 4 | . 4 . Assimilate 1 | . 1 . Botnet 3 | . 3 . Fabricators . | . . . Repair Stations . | . . . Recycling Units . | . . . Scanalyzers . | . . . Garrison Access . | . . . Data Cores Recovered . | . . . Used . | . . . Hacking Detections 2 | . 2 . Full Trace Events . | . . . Feedback Events . | . . . Feedback Blocked . | . . . Robot Schematics Acquired . | . . . Robots Built . | . . . Authchips . | . . . Time . | . . . Total Robot Build Rating . | . . . Part Schematics Acquired . | . . . Parts Built . | . . . Authchips . | . . . Time . | . . . Total Part Build Rating . | . . . Parts Repaired . | . . . Time . | . . . Parts Recycled . | . . . Recycled Matter . | . . . Retrieved Matter . | . . . Retrieved Components . | . . . Parts Scanalyzed . | . . . Part Schematics Acquired . | . . . Parts Damaged . | . . . Bothacking | -11 -10 -10 ------------ Run | Yrd Mat Sub Used RIF Installer . | . . . Robots Hacked . | . . . Non-combat . | . . . Combat . | . . . Robot Hacks Applied . | . . . Relay Couplers Released . | . . . Fabnet Peak Effective % . | . . . Robots Rewired . | . . . Allies Hacked . | . . . Hacks Repelled . | . . . Allies | -11 -10 -10 -------- Run | Yrd Mat Sub Total Allies . | . . . Largest Group . | . . . Highest-Rated Group . | . . . Highest-Rated Ally . | . . . Total Orders . | . . . Ally Attacks . | . . . Total Damage . | . . . Kills . | . . . Allies Corrupted . | . . . Allies Melted . | . . . Intel | -11 -10 -10 ------- Run | Yrd Mat Sub Robot Analysis Total . | . . . Derelict Logs Recovered 1 | . . 1 Drone Launches . | . . . Drone Recoveries . | . . . Exploration | -11 -10 -10 ------------- Run | Yrd Mat Sub Turns Passed 1908 | 4 551 1353 Spaces Moved 1061 | 1 196 864 Core . | . . . Treads 17 | . . 17 Legs 513 | . . 513 Wheels 531 | 1 196 334 Hover . | . . . Flight . | . . . Fastest Speed 100 | 100 100 100 Average Speed 118 | 100 100 122 Slowest Speed 160 | 100 100 160 Overloaded Moves . | . . . Propulsion Burnouts . | . . . Robots Hopped . | . . . Cave-ins Triggered . | . . . Exploration Rate (%) 22 | 2 31 33 Regions Visited 2 Branch Regions 1 Pre-discovered Areas . | . . . Known Exits Taken . | . . . Unknown Exits Taken 2 | 1 1 . Scrap Searched 10 | . . 10 Spaces Dug 2 | . . 2 Terrain Destroyed 38 | . . 38 Melee . | . . . Projectile 2 | . . 2 AOE 36 | . . 36 Terrain Rammed . | . . . Walls Destroyed . | . . . Machines Disabled . | . . . Actions | -11 -10 -10 --------- Run | Yrd Mat Sub Total 1560 | 4 510 1046 Wait 324 | . 280 44 Move 1059 | . 195 864 Hop . | . . . Pick Up 23 | . 6 17 Fast Attach 2 | . . 2 Attach 7 | . 1 6 Detach 2 | . . 2 Swap 17 | 2 2 13 Drop 18 | 2 3 13 Fire 104 | . 23 81 Melee . | . . . Ram . | . . . Kick . | . . . Crush . | . . . Escape Stasis . | . . . Rewire . | . . . Trap . | . . . Miscellaneous 4 | . . 4 Route ------- -11/Scrapyard -10/Materials (discovered 2 exits: [*Mat] / *Sub) -10/Subcaves (discovered 1 exit: *Rec) History --------- Turn | Location | Event 5 | -11/Scrapyard | Discovered new exit (range 0) 5 | -11/Scrapyard | Entered Materials 160 | -10/Materials | Discovered new exit (range 16) 306 | -10/Materials | Build established: Mutant 539 | -10/Materials | Discovered new exit (range 15) 556 | -10/Materials | Entered Subcaves 641 | -10/Subcaves | Disturbed a concealed Subdweller 659 | -10/Subcaves | Core integrity fell below 50% 969 | -10/Subcaves | Visited 4L-MR0's lab 1026 | -10/Subcaves | Found Cargo Legs 1027 | -10/Subcaves | Attached Cargo Legs, gained temporary slots: Utility x2 1250 | -10/Subcaves | Core integrity fell below 20% 1324 | -10/Subcaves | Shifting Twisted Machinery released Sub. Monowheel 1333 | -10/Subcaves | Shifting Twisted Machinery released Shrapnel Trap 1589 | -10/Subcaves | Identified exit to Recycling 1596 | -10/Subcaves | Shifting Twisted Machinery released Mak. Hacking Suite 1603 | -10/Subcaves | Shifting Twisted Machinery released Battle Cannon 1603 | -10/Subcaves | Shifting Twisted Machinery released Mak. Light Armor Plating 1909 | -10/Subcaves | Destroyed by BV-0GN(R) with Subdweller Machine Gun Last Messages --------------- 01700_ S-10 Pest knocked back. 01708_ S-10 Pest destroyed. 01711_ Acquired 15 matter. 01713_ Acquired 7 matter. 01715_ Acquired 2 matter. 01718_ Flight Unit fries itself beyond repair. 01742_ Acquired 44 matter. 01744_ Scrap Shield Fragment affixed to Scrap Shield (+21). 01774_ Acquired 9 matter. 01775_ Searching scrap... 01775_ Found Sub. Monowheel. 01775_ Found Flamer. 01775_ Found 24 Matter. 01776_ Acquired 24 matter. 01860_ Acquired 25 matter. 01895_ RB-HPC(R) Disposable Heat Sink blasted off. 01895_ RB-HPC(R) knocked back. 01898_ BV-0GN(R) knocked back. 01901_ RB-HPC(R) destroyed. 01907_ Battle Cannon destroyed. Map ----- +----------------------------------------------------+ | ?????????????????????????????????????????????????? | | ?????????????????????????????????????????????????? | | ?????????????????????????????????????????????????? | | ?????????????????????????????????????????????????? | | ?????????????????????????????????????????????????? | | ?????????????????????????????????????????????????? | | ?????????????????????????????????????????????????? | | ?????????????????????????????????????????????????? | | ?????????????????????????????????????????????????? | | ?????????????????????????????????????????????????? | | ?????????????????????????????????????????????????? | | ?????????????????????????????????????????????????? | | ?????????????????????????????????????????????????? | | ?????????????????????????????????????????????????? | | ?????????????????????????????????????????????????? | | ?????????????????????????????????????????????????? | | ?????????????????????????????????????#???????????? | | ?????????????????????????????????? ? ????????????? | | ?????????????????????????????????"" ????????????? | | ???????????????????????????????? " ????????????? | | ??????????????????????????????"" ""?????????????? | | ??????????????????????????????" ??????????????? | | ?????????????????????????????" ???????????????? | | ????????????????????????????# " #????????????????? | | ??###???????????????????#### " "#????????????????? | | ?## #????#######????#####@# # "#????????????????? | | ?#""#??### ###### [!" #?????????????????? | | ##""####"" ###" ### %&%R"""#?????????????????? | | #" """ "" #??#""""## ="#####????????????????? | | # " #### ##%"### ???????????????? | | ## """"" ## ##""" ##"""" ""???????????????? | | ?## """"" | ####" [ ## "#???????????????? | | ??# """" """ "####! ### #""""#???????????????? | | ??# ##""### " = "#####"""###?????????????? | | ?# #####?## "#"" ""]""##?#""" ##????????????? | | ?# #??????####" ##" ##?# ##???????????? | | ?# #?????????#" #### ####" "##??????????? | | ?## ?????????### ###" "##"" " #??????????? | | ??# ???????????##=### =""] #??????????? | | ??# ###???????????## ###"" ##### #??????????? | | ??# ??????????????##|### #???## #??????????? | | ??# ???????????????? ######????## #??????????? | | ??## ??###???????????? #?????????# #??????????? | | ???# ?# ???????????? #?????????# #??????????? | | ???# ? ???????????? #????????##*#??????????? | | ????# ????????????# ""#### #??????????? | | ????? ???????$ >"% #??????????? | | ????? ???????????# ""### #??????????? | | ???? ?????????????# ??????# ##?????????? | | ??? ????????????????? ??????# #?????????? | +----------------------------------------------------+ Best States ------------- Heat Dissipation 25 Coolant Potential 50 Energy Generation 15 Energy Capacity 250 Matter Stores 300 Matter Capacity 300 Sight Range 21 Terrain Scan Density 10 Armor Coverage 800 Evasion (%) 55 Recoil Reduction 2 Item Schematics ----------------- None Robot Schematics ------------------ None Fabricated ------------ Nothing Alien Tech Used ----------------- None Achievements -------------- None Challenges ------------ None Game ------ Seed MasterAssaultSpecial Manual? 0 Play Time 00:19:20 Cumulative 81.0 hours Start 2024.04.21 @ 03:54:58 End 2024.04.21 @ 04:10:57 Sessions 1 Manual Loads 0 Difficulty Rogue Special Mode None Game No. 96 Rogue 81 Adventurer 15 Explorer 0 Win Type - Total 1 Types 0/0/1/0/0/0/0/0/0 Lore% 33 Gallery% 60 Achievement% 47 Wizard Run 0 Options --------- Layout 0 ASCII 0 Keyboard 0 Movement Mouse Keybinds 0 Fullscreen 2 Font 36/Smallcaps Map View 76x50 Zoom Use 0% Tactical HUD 1 Map Filters NONE Filters NONE Steam 1 RUN: 3c122c7f-b43d-48fe-bc01-f26d0afec68f